[Event "Titled Tuesday Blitz October 31 Late 2023"]
[White "Tanenbaum, Zachary"]
[Black "Gurevich, Dmitry"]
[WhiteFideId "2060850"]
[BlackFideId "2000407"]
[WhiteElo "2709"]
[BlackElo "2546"]
[Result "1/2-1/2"]
[Round "7"]
[TimeControl "180+1"]
[Date "2023.10.31"]
[WhiteClock "0:00:08"]
[BlackClock "0:00:04"]
[Board "38"]

1. e4 {[%clk 0:03:00]}  c5 {[%clk 0:02:58]} 2. Nf3 {[%clk 0:03:01]}  d6 {[%clk 0:02:58]} 3. d4 {[%clk 0:03:01]}  cxd4 {[%clk 0:02:58]} 4. Nxd4 {[%clk 0:03:02]}  Nf6 {[%clk 0:02:58]} 5. Nc3 {[%clk 0:03:02]}  Nc6 {[%clk 0:02:57]} 6. Bg5 {[%clk 0:03:01]}  e6 {[%clk 0:02:56]} 7. Bb5 {[%clk 0:03:01]}  Bd7 {[%clk 0:02:51]} 8. Qd3 {[%clk 0:03:01]}  Nxd4 {[%clk 0:02:37]} 9. Bxd7+ {[%clk 0:02:57]}  Qxd7 {[%clk 0:02:36]} 10. Qxd4 {[%clk 0:02:57]}  Be7 {[%clk 0:02:34]} 11. O-O-O {[%clk 0:02:56]}  O-O {[%clk 0:02:24]} 12. e5 {[%clk 0:02:55]}  Nd5 {[%clk 0:02:16]} 13. Bxe7 {[%clk 0:02:54]}  Qxe7 {[%clk 0:02:11]} 14. Nxd5 {[%clk 0:02:52]}  exd5 {[%clk 0:02:10]} 15. exd6 {[%clk 0:02:52]}  Qxd6 {[%clk 0:02:07]} 16. Qxd5 {[%clk 0:02:51]}  Qb6 {[%clk 0:01:58]} 17. Qd4 {[%clk 0:02:47]}  Qa5 {[%clk 0:01:58]} 18. Kb1 {[%clk 0:02:41]}  Rac8 {[%clk 0:01:55]} 19. h4 {[%clk 0:02:31]}  Rc6 {[%clk 0:01:49]} 20. h5 {[%clk 0:02:28]}  h6 {[%clk 0:01:49]} 21. Rh3 {[%clk 0:02:22]}  Rf6 {[%clk 0:01:36]} 22. Rg3 {[%clk 0:02:19]}  Qxh5 {[%clk 0:01:31]} 23. Re1 {[%clk 0:01:53]}  Qf5 {[%clk 0:01:12]} 24. Rf3 {[%clk 0:01:30]}  Re6 {[%clk 0:01:10]} 25. Rd1 {[%clk 0:01:21]}  Qa5 {[%clk 0:01:08]} 26. Ra3 {[%clk 0:01:20]}  Qg5 {[%clk 0:01:00]} 27. Rg3 {[%clk 0:01:03]}  Qf6 {[%clk 0:00:46]} 28. Qxa7 {[%clk 0:01:01]}  Rb6 {[%clk 0:00:43]} 29. Rb3 {[%clk 0:00:56]}  Rd8 {[%clk 0:00:29]} 30. Rc1 {[%clk 0:00:50]}  Rxb3 {[%clk 0:00:24]} 31. axb3 {[%clk 0:00:50]}  Qc6 {[%clk 0:00:23]} 32. f3 {[%clk 0:00:42]}  Rd2 {[%clk 0:00:20]} 33. Qb8+ {[%clk 0:00:39]}  Kh7 {[%clk 0:00:19]} 34. Qf4 {[%clk 0:00:40]}  Qd5 {[%clk 0:00:11]} 35. g4 {[%clk 0:00:32]}  f6 {[%clk 0:00:07]} 36. b4 {[%clk 0:00:27]}  Rd4 {[%clk 0:00:07]} 37. Qf5+ {[%clk 0:00:18]}  Qxf5 {[%clk 0:00:06]} 38. gxf5 {[%clk 0:00:19]}  Rxb4 {[%clk 0:00:06]} 39. c4 {[%clk 0:00:20]}  Rb3 {[%clk 0:00:05]} 40. Rd1 {[%clk 0:00:14]}  Rxf3 {[%clk 0:00:04]} 41. Rd7 {[%clk 0:00:15]}  h5 {[%clk 0:00:04]} 42. Rxb7 {[%clk 0:00:12]}  h4 {[%clk 0:00:04]} 43. Rd7 {[%clk 0:00:11]}  h3 {[%clk 0:00:04]} 44. Rd2 {[%clk 0:00:12]}  Rxf5 {[%clk 0:00:03]} 45. b4 {[%clk 0:00:11]}  Rf4 {[%clk 0:00:01]} 46. Rh2 {[%clk 0:00:08]}  Rxc4 {[%clk 0:00:01]} 47. Rxh3+ {[%clk 0:00:08]}  Kg8 {[%clk 0:00:01]} 48. Rb3 {[%clk 0:00:09]}  Rc6 {[%clk 0:00:02]} 49. b5 {[%clk 0:00:09]}  Rb6 {[%clk 0:00:02]} 50. Kc2 {[%clk 0:00:10]}  Kf7 {[%clk 0:00:03]} 51. Kc3 {[%clk 0:00:10]}  Ke6 {[%clk 0:00:03]} 52. Kb4 {[%clk 0:00:10]}  Kd6 {[%clk 0:00:04]} 53. Ka5 {[%clk 0:00:11]}  Rb8 {[%clk 0:00:03]} 54. b6 {[%clk 0:00:10]}  Kc6 {[%clk 0:00:03]} 55. Rc3+ {[%clk 0:00:10]}  Kd7 {[%clk 0:00:01]} 56. Rc7+ {[%clk 0:00:10]}  Kd6 {[%clk 0:00:01]} 57. Rxg7 {[%clk 0:00:11]}  f5 {[%clk 0:00:01]} 58. Ka6 {[%clk 0:00:10]}  Ke5 {[%clk 0:00:01]} 59. Ka7 {[%clk 0:00:10]}  Rd8 {[%clk 0:00:01]} 60. b7 {[%clk 0:00:10]}  f4 {[%clk 0:00:01]} 61. Re7+ {[%clk 0:00:10]}  Kf6 {[%clk 0:00:02]} 62. Rc7 {[%clk 0:00:09]}  Kf5 {[%clk 0:00:02]} 63. Rc8 {[%clk 0:00:09]}  Rd7 {[%clk 0:00:02]} 64. Kb6 {[%clk 0:00:08]}  Rxb7+ {[%clk 0:00:02]} 65. Kxb7 {[%clk 0:00:09]}  f3 {[%clk 0:00:02]} 66. Kc6 {[%clk 0:00:09]}  Ke4 {[%clk 0:00:03]} 67. Rf8 {[%clk 0:00:08]}  Ke3 {[%clk 0:00:03]} 68. Kd5 {[%clk 0:00:08]}  f2 {[%clk 0:00:03]} 69. Re8+ {[%clk 0:00:08]}  Kf3 {[%clk 0:00:03]} 70. Rf8+ {[%clk 0:00:08]}  Ke2 {[%clk 0:00:03]} 71. Re8+ {[%clk 0:00:09]}  Kd2 {[%clk 0:00:03]} 72. Rf8 {[%clk 0:00:08]}  Ke2 {[%clk 0:00:03]} 73. Re8+ {[%clk 0:00:08]}  Kd2 {[%clk 0:00:04]} 74. Rf8 {[%clk 0:00:08]}  Ke2 {[%clk 0:00:04]} 1/2-1/2


[Site "https://www.chess.com"]

[Event "Titled Tuesday Blitz October 31 Late 2023"]
[White "Sturt, Raven"]
[Black "Annaberdiyev, Meylis"]
[WhiteFideId "2007304"]
[BlackFideId "14000563"]
[WhiteElo "2543"]
[BlackElo "2702"]
[Result "0-1"]
[Round "7"]
[TimeControl "180+1"]
[Date "2023.10.31"]
[WhiteClock "0:00:04"]
[BlackClock "0:00:18"]
[Board "39"]

1. f4 {[%clk 0:03:00]}  d5 {[%clk 0:02:58]} 2. Nf3 {[%clk 0:03:00]}  c6 {[%clk 0:02:56]} 3. e3 {[%clk 0:03:01]}  Bg4 {[%clk 0:02:57]} 4. h3 {[%clk 0:02:59]}  Bxf3 {[%clk 0:02:56]} 5. Qxf3 {[%clk 0:02:59]}  Nd7 {[%clk 0:02:56]} 6. c4 {[%clk 0:02:46]}  Ngf6 {[%clk 0:02:49]} 7. b3 {[%clk 0:02:46]}  e5 {[%clk 0:02:44]} 8. Bb2 {[%clk 0:02:46]}  Bd6 {[%clk 0:02:41]} 9. Nc3 {[%clk 0:02:40]}  d4 {[%clk 0:02:35]} 10. Ne4 {[%clk 0:02:23]}  Nxe4 {[%clk 0:02:34]} 11. Qxe4 {[%clk 0:02:24]}  Qh4+ {[%clk 0:02:29]} 12. Kd1 {[%clk 0:02:16]}  Nc5 {[%clk 0:02:29]} 13. Qf3 {[%clk 0:02:10]}  O-O {[%clk 0:01:33]} 14. fxe5 {[%clk 0:02:08]}  Bxe5 {[%clk 0:01:34]} 15. g3 {[%clk 0:02:08]}  Qd8 {[%clk 0:01:29]} 16. Rh2 {[%clk 0:02:00]}  Qd6 {[%clk 0:01:24]} 17. exd4 {[%clk 0:01:07]}  Bxd4 {[%clk 0:01:24]} 18. Kc2 {[%clk 0:01:07]}  Ne6 {[%clk 0:01:00]} 19. Bc3 {[%clk 0:01:03]}  a5 {[%clk 0:00:57]} 20. Re1 {[%clk 0:00:55]}  a4 {[%clk 0:00:58]} 21. b4 {[%clk 0:00:55]}  c5 {[%clk 0:00:53]} 22. b5 {[%clk 0:00:53]}  b6 {[%clk 0:00:52]} 23. Bd3 {[%clk 0:00:51]}  Rad8 {[%clk 0:00:49]} 24. Rhe2 {[%clk 0:00:41]}  g6 {[%clk 0:00:47]} 25. h4 {[%clk 0:00:39]}  Bg7 {[%clk 0:00:34]} 26. Re4 {[%clk 0:00:19]}  Rd7 {[%clk 0:00:19]} 27. Qe2 {[%clk 0:00:13]}  Rfd8 {[%clk 0:00:18]} 28. Bxg7 {[%clk 0:00:08]}  Kxg7 {[%clk 0:00:19]} 29. Re3 {[%clk 0:00:04]}  Nd4+ {[%clk 0:00:18]} 0-1


[Site "https://www.chess.com"]

[Event "Titled Tuesday Blitz October 31 Late 2023"]
[White "Mystery2007"]
[Black "Leiva, Gianmarco"]
[BlackFideId "3804399"]
[WhiteElo "2492"]
[BlackElo "2693"]
[Result "0-1"]
[Round "7"]
[TimeControl "180+1"]
[Date "2023.10.31"]
[WhiteClock "0:00:31"]
[BlackClock "0:00:07"]
[Board "41"]

1. Nf3 {[%clk 0:03:00]}  Nf6 {[%clk 0:02:59]} 2. c4 {[%clk 0:03:01]}  e6 {[%clk 0:02:54]} 3. b3 {[%clk 0:03:01]}  d5 {[%clk 0:02:50]} 4. Bb2 {[%clk 0:03:02]}  c5 {[%clk 0:02:48]} 5. g3 {[%clk 0:03:02]}  Nc6 {[%clk 0:02:47]} 6. Bg2 {[%clk 0:03:02]}  d4 {[%clk 0:02:48]} 7. O-O {[%clk 0:03:02]}  e5 {[%clk 0:02:48]} 8. d3 {[%clk 0:03:02]}  Be7 {[%clk 0:02:48]} 9. Nbd2 {[%clk 0:03:02]}  O-O {[%clk 0:02:48]} 10. a3 {[%clk 0:03:01]}  a5 {[%clk 0:02:48]} 11. Qc2 {[%clk 0:02:55]}  Be6 {[%clk 0:02:48]} 12. Ng5 {[%clk 0:02:54]}  Bf5 {[%clk 0:02:48]} 13. Nge4 {[%clk 0:02:52]}  Nd7 {[%clk 0:02:49]} 14. e3 {[%clk 0:02:49]}  Be6 {[%clk 0:02:43]} 15. exd4 {[%clk 0:02:48]}  Nxd4 {[%clk 0:02:41]} 16. Bxd4 {[%clk 0:02:48]}  cxd4 {[%clk 0:02:42]} 17. Nf3 {[%clk 0:02:35]}  Rc8 {[%clk 0:02:34]} 18. h4 {[%clk 0:02:33]}  b5 {[%clk 0:02:29]} 19. Qe2 {[%clk 0:02:23]}  a4 {[%clk 0:02:23]} 20. Nfg5 {[%clk 0:02:04]}  Bf5 {[%clk 0:02:21]} 21. cxb5 {[%clk 0:01:49]}  h6 {[%clk 0:02:17]} 22. Qf3 {[%clk 0:01:35]}  Bg6 {[%clk 0:01:37]} 23. h5 {[%clk 0:01:34]}  Bxe4 {[%clk 0:01:36]} 24. Nxe4 {[%clk 0:01:34]}  axb3 {[%clk 0:01:32]} 25. Rfb1 {[%clk 0:01:31]}  Rc2 {[%clk 0:00:47]} 26. Bh3 {[%clk 0:01:22]}  b2 {[%clk 0:00:45]} 27. Ra2 {[%clk 0:01:21]}  Rc1+ {[%clk 0:00:45]} 28. Qd1 {[%clk 0:01:06]}  Rxd1+ {[%clk 0:00:32]} 29. Rxd1 {[%clk 0:01:07]}  Nc5 {[%clk 0:00:20]} 30. Nxc5 {[%clk 0:00:58]}  Bxc5 {[%clk 0:00:21]} 31. a4 {[%clk 0:00:55]}  Qa5 {[%clk 0:00:17]} 32. Rxb2 {[%clk 0:00:52]}  Qxa4 {[%clk 0:00:17]} 33. Bf5 {[%clk 0:00:47]}  Qxd1+ {[%clk 0:00:16]} 34. Kg2 {[%clk 0:00:46]}  Qxh5 {[%clk 0:00:17]} 35. Be4 {[%clk 0:00:45]}  f5 {[%clk 0:00:16]} 36. Bd5+ {[%clk 0:00:45]}  Kh8 {[%clk 0:00:16]} 37. Rc2 {[%clk 0:00:46]}  Bb6 {[%clk 0:00:12]} 38. Rc6 {[%clk 0:00:45]}  Ba5 {[%clk 0:00:10]} 39. b6 {[%clk 0:00:44]}  Bxb6 {[%clk 0:00:10]} 40. Rxb6 {[%clk 0:00:44]}  f4 {[%clk 0:00:08]} 41. Bf3 {[%clk 0:00:42]}  Qg5 {[%clk 0:00:08]} 42. g4 {[%clk 0:00:43]}  Qe7 {[%clk 0:00:08]} 43. Be4 {[%clk 0:00:41]}  f3+ {[%clk 0:00:07]} 44. Bxf3 {[%clk 0:00:37]}  Qf7 {[%clk 0:00:07]} 45. Be4 {[%clk 0:00:32]}  Qxf2+ {[%clk 0:00:08]} 46. Kh3 {[%clk 0:00:33]}  Rf3+ {[%clk 0:00:05]} 47. Bxf3 {[%clk 0:00:33]}  Qxf3+ {[%clk 0:00:05]} 48. Kh2 {[%clk 0:00:33]}  Qxd3 {[%clk 0:00:04]} 49. Rb8+ {[%clk 0:00:34]}  Kh7 {[%clk 0:00:05]} 50. Kg2 {[%clk 0:00:35]}  Qe4+ {[%clk 0:00:05]} 51. Kg3 {[%clk 0:00:35]}  Qf4+ {[%clk 0:00:06]} 52. Kh3 {[%clk 0:00:35]}  e4 {[%clk 0:00:06]} 53. Re8 {[%clk 0:00:33]}  d3 {[%clk 0:00:07]} 54. Rd8 {[%clk 0:00:34]}  Qf3+ {[%clk 0:00:06]} 55. Kh4 {[%clk 0:00:33]}  Qf6+ {[%clk 0:00:07]} 56. g5 {[%clk 0:00:33]}  Qxd8 {[%clk 0:00:08]} 57. Kg4 {[%clk 0:00:33]}  Qxg5+ {[%clk 0:00:08]} 58. Kh3 {[%clk 0:00:32]}  Qg1 {[%clk 0:00:06]} 59. Kh4 {[%clk 0:00:32]}  Qg2 {[%clk 0:00:06]} 60. Kh5 {[%clk 0:00:31]}  Qg5# {[%clk 0:00:07]} 0-1


[Site "https://www.chess.com"]

[Event "Titled Tuesday Blitz October 31 Late 2023"]
[White "Rastbod, Ali"]
[Black "Chan, Luis"]
[WhiteFideId "12567477"]
[BlackFideId "3216357"]
[WhiteElo "2741"]
[BlackElo "2572"]
[Result "0-1"]
[Round "7"]
[TimeControl "180+1"]
[Date "2023.10.31"]
[WhiteClock "0:00:07"]
[BlackClock "0:00:03"]
[Board "44"]

1. Nc3 {[%clk 0:03:00]}  d5 {[%clk 0:02:55]} 2. e4 {[%clk 0:03:01]}  e6 {[%clk 0:02:54]} 3. Nf3 {[%clk 0:02:56]}  Nf6 {[%clk 0:02:52]} 4. e5 {[%clk 0:02:56]}  Nfd7 {[%clk 0:02:53]} 5. d4 {[%clk 0:02:56]}  c5 {[%clk 0:02:53]} 6. Bg5 {[%clk 0:02:56]}  Qb6 {[%clk 0:02:41]} 7. dxc5 {[%clk 0:02:56]}  Bxc5 {[%clk 0:02:27]} 8. Qd2 {[%clk 0:02:56]}  Nc6 {[%clk 0:02:07]} 9. O-O-O {[%clk 0:02:40]}  Ndxe5 {[%clk 0:01:48]} 10. Nxe5 {[%clk 0:02:24]}  Nxe5 {[%clk 0:01:49]} 11. Na4 {[%clk 0:01:13]}  Qb4 {[%clk 0:01:49]} 12. Nxc5 {[%clk 0:01:09]}  Qxc5 {[%clk 0:01:48]} 13. Be3 {[%clk 0:01:07]}  Qc6 {[%clk 0:01:22]} 14. Qb4 {[%clk 0:01:00]}  a5 {[%clk 0:01:19]} 15. Qf4 {[%clk 0:00:48]}  Ng6 {[%clk 0:01:02]} 16. Qg3 {[%clk 0:00:47]}  O-O {[%clk 0:00:56]} 17. h4 {[%clk 0:00:45]}  f5 {[%clk 0:00:48]} 18. Qg5 {[%clk 0:00:37]}  f4 {[%clk 0:00:35]} 19. Bd4 {[%clk 0:00:32]}  e5 {[%clk 0:00:34]} 20. Bxe5 {[%clk 0:00:19]}  Bf5 {[%clk 0:00:33]} 21. Bd3 {[%clk 0:00:17]}  h6 {[%clk 0:00:29]} 22. Qh5 {[%clk 0:00:14]}  Nxe5 {[%clk 0:00:14]} 23. Bxf5 {[%clk 0:00:13]}  Nc4 {[%clk 0:00:10]} 24. Rxd5 {[%clk 0:00:09]}  Qf6 {[%clk 0:00:09]} 25. c3 {[%clk 0:00:06]}  Rae8 {[%clk 0:00:06]} 26. Rhd1 {[%clk 0:00:07]}  a4 {[%clk 0:00:05]} 27. Qg6 {[%clk 0:00:06]}  a3 {[%clk 0:00:04]} 28. Qh7+ {[%clk 0:00:06]}  Kf7 {[%clk 0:00:04]} 29. Rd7+ {[%clk 0:00:06]}  Re7 {[%clk 0:00:05]} 30. Rxe7+ {[%clk 0:00:07]}  Kxe7 {[%clk 0:00:04]} 31. Rd7+ {[%clk 0:00:06]}  Ke8 {[%clk 0:00:05]} 32. Qxg7 {[%clk 0:00:04]}  axb2+ {[%clk 0:00:05]} 33. Kc2 {[%clk 0:00:05]}  Qxg7 {[%clk 0:00:03]} 34. Rxg7 {[%clk 0:00:06]}  Rxf5 {[%clk 0:00:04]} 35. Rxb7 {[%clk 0:00:06]}  Rd5 {[%clk 0:00:02]} 36. Rb4 {[%clk 0:00:06]}  Rd2+ {[%clk 0:00:02]} 37. Kb1 {[%clk 0:00:07]}  Na3# {[%clk 0:00:03]} 0-1


[Site "https://www.chess.com"]

[Event "Titled Tuesday Blitz October 31 Late 2023"]
[White "Seletsky, Grigory"]
[Black "ArtemDyachuk"]
[WhiteFideId "14112191"]
[WhiteElo "2486"]
[BlackElo "2639"]
[Result "0-1"]
[Round "7"]
[TimeControl "180+1"]
[Date "2023.10.31"]
[WhiteClock "0:00:00"]
[BlackClock "0:00:07"]
[Board "50"]

1. b3 {[%clk 0:02:57]}  e5 {[%clk 0:02:57]} 2. Bb2 {[%clk 0:02:57]}  Nc6 {[%clk 0:02:56]} 3. e3 {[%clk 0:02:58]}  Nge7 {[%clk 0:02:54]} 4. c4 {[%clk 0:02:56]}  d5 {[%clk 0:02:54]} 5. cxd5 {[%clk 0:02:56]}  Nxd5 {[%clk 0:02:55]} 6. a3 {[%clk 0:02:55]}  Be6 {[%clk 0:02:51]} 7. Qc2 {[%clk 0:02:56]}  Bd6 {[%clk 0:02:47]} 8. Nf3 {[%clk 0:02:56]}  O-O {[%clk 0:02:44]} 9. d3 {[%clk 0:02:54]}  Nb6 {[%clk 0:02:41]} 10. Nbd2 {[%clk 0:02:54]}  f5 {[%clk 0:02:38]} 11. Be2 {[%clk 0:02:54]}  Qf6 {[%clk 0:02:36]} 12. O-O {[%clk 0:02:54]}  Qh6 {[%clk 0:02:36]} 13. e4 {[%clk 0:02:52]}  f4 {[%clk 0:02:30]} 14. Nc4 {[%clk 0:02:52]}  Nxc4 {[%clk 0:02:29]} 15. dxc4 {[%clk 0:02:47]}  Rae8 {[%clk 0:02:17]} 16. c5 {[%clk 0:02:46]}  Be7 {[%clk 0:02:17]} 17. Bc4 {[%clk 0:02:45]}  Qf6 {[%clk 0:01:55]} 18. b4 {[%clk 0:02:36]}  g5 {[%clk 0:01:50]} 19. Rad1 {[%clk 0:02:24]}  g4 {[%clk 0:01:50]} 20. Nd2 {[%clk 0:02:24]}  f3 {[%clk 0:01:48]} 21. Bxe6+ {[%clk 0:02:22]}  Qxe6 {[%clk 0:01:48]} 22. Qc4 {[%clk 0:02:22]}  Bg5 {[%clk 0:01:40]} 23. Qxe6+ {[%clk 0:02:18]}  Rxe6 {[%clk 0:01:40]} 24. Nc4 {[%clk 0:02:11]}  fxg2 {[%clk 0:01:40]} 25. Kxg2 {[%clk 0:02:09]}  Bf4 {[%clk 0:01:41]} 26. Rd7 {[%clk 0:02:05]}  Ne7 {[%clk 0:01:35]} 27. Rfd1 {[%clk 0:01:42]}  Ng6 {[%clk 0:01:27]} 28. Rxc7 {[%clk 0:01:41]}  Nh4+ {[%clk 0:01:26]} 29. Kf1 {[%clk 0:01:41]}  Ref6 {[%clk 0:01:18]} 30. Rdd7 {[%clk 0:01:13]}  Bh6 {[%clk 0:01:16]} 31. Rxh7 {[%clk 0:01:13]}  Rxf2+ {[%clk 0:01:15]} 32. Ke1 {[%clk 0:01:14]}  Rxh2 {[%clk 0:00:32]} 33. Nxe5 {[%clk 0:00:28]}  Ng2+ {[%clk 0:00:20]} 34. Ke2 {[%clk 0:00:22]}  Nf4+ {[%clk 0:00:20]} 35. Ke3 {[%clk 0:00:20]}  Re2+ {[%clk 0:00:19]} 36. Kd4 {[%clk 0:00:21]}  Ne6+ {[%clk 0:00:19]} 37. Kd5 {[%clk 0:00:17]}  Nxc7+ {[%clk 0:00:17]} 38. Rxc7 {[%clk 0:00:15]}  Rxb2 {[%clk 0:00:18]} 39. Nxg4 {[%clk 0:00:13]}  Rd2+ {[%clk 0:00:14]} 40. Ke6 {[%clk 0:00:11]}  Bg5 {[%clk 0:00:11]} 41. Rxb7 {[%clk 0:00:09]}  Rd4 {[%clk 0:00:10]} 42. Rxa7 {[%clk 0:00:06]}  Rxe4+ {[%clk 0:00:10]} 43. Ne5 {[%clk 0:00:06]}  Re8+ {[%clk 0:00:10]} 44. Kf5 {[%clk 0:00:05]}  R4xe5+ {[%clk 0:00:07]} 45. Kg6 {[%clk 0:00:05]}  R8e6+ {[%clk 0:00:08]} 46. Kh5 {[%clk 0:00:05]}  Be7+ {[%clk 0:00:07]} 47. Kg4 {[%clk 0:00:05]}  Kf7 {[%clk 0:00:06]} 48. a4 {[%clk 0:00:02]}  Kg6 {[%clk 0:00:06]} 49. a5 {[%clk 0:00:00]}  Re3 {[%clk 0:00:07]} 0-1


[Site "https://www.chess.com"]

[Event "Titled Tuesday Blitz October 31 Late 2023"]
[White "Abduzhaparov"]
[Black "Yelisieiev, Yevhenii"]
[BlackFideId "14139642"]
[WhiteElo "2455"]
[BlackElo "2619"]
[Result "0-1"]
[Round "7"]
[TimeControl "180+1"]
[Date "2023.10.31"]
[WhiteClock "0:00:00"]
[BlackClock "0:00:03"]
[Board "53"]

1. Nf3 {[%clk 0:03:00]}  d6 {[%clk 0:03:00]} 2. c4 {[%clk 0:03:01]}  g6 {[%clk 0:02:56]} 3. e4 {[%clk 0:03:00]}  c5 {[%clk 0:02:55]} 4. d4 {[%clk 0:03:00]}  cxd4 {[%clk 0:02:56]} 5. Nxd4 {[%clk 0:03:01]}  Bg7 {[%clk 0:02:57]} 6. Be3 {[%clk 0:03:00]}  Nf6 {[%clk 0:02:57]} 7. Nc3 {[%clk 0:03:00]}  O-O {[%clk 0:02:57]} 8. Be2 {[%clk 0:03:00]}  Nc6 {[%clk 0:02:56]} 9. O-O {[%clk 0:02:59]}  Nd7 {[%clk 0:02:53]} 10. Nf3 {[%clk 0:02:45]}  Nc5 {[%clk 0:02:50]} 11. Nd2 {[%clk 0:02:45]}  f5 {[%clk 0:02:46]} 12. exf5 {[%clk 0:02:34]}  Bxf5 {[%clk 0:02:45]} 13. Rc1 {[%clk 0:02:30]}  Nb4 {[%clk 0:02:28]} 14. Bxc5 {[%clk 0:02:01]}  dxc5 {[%clk 0:02:27]} 15. Nde4 {[%clk 0:02:00]}  Bd4 {[%clk 0:02:18]} 16. a3 {[%clk 0:01:53]}  Nc6 {[%clk 0:02:16]} 17. Bf3 {[%clk 0:01:51]}  Ne5 {[%clk 0:02:15]} 18. Qe2 {[%clk 0:01:39]}  Be6 {[%clk 0:02:06]} 19. b3 {[%clk 0:01:24]}  Nxf3+ {[%clk 0:01:50]} 20. gxf3 {[%clk 0:01:25]}  Bh3 {[%clk 0:01:48]} 21. Rfd1 {[%clk 0:01:23]}  e5 {[%clk 0:01:47]} 22. Kh1 {[%clk 0:01:16]}  Qh4 {[%clk 0:01:43]} 23. Nd5 {[%clk 0:01:07]}  Rf7 {[%clk 0:01:41]} 24. Rg1 {[%clk 0:01:00]}  Raf8 {[%clk 0:01:40]} 25. Rg3 {[%clk 0:01:00]}  Be6 {[%clk 0:01:30]} 26. Rcg1 {[%clk 0:00:59]}  Kh8 {[%clk 0:01:28]} 27. Ne3 {[%clk 0:00:44]}  Bd7 {[%clk 0:01:04]} 28. Ng2 {[%clk 0:00:38]}  Qe7 {[%clk 0:01:03]} 29. Ne3 {[%clk 0:00:38]}  Bc6 {[%clk 0:01:03]} 30. Nd5 {[%clk 0:00:37]}  Qd8 {[%clk 0:01:02]} 31. Ng5 {[%clk 0:00:19]}  Rf6 {[%clk 0:00:49]} 32. Rh3 {[%clk 0:00:17]}  h5 {[%clk 0:00:36]} 33. Qe4 {[%clk 0:00:12]}  Rf5 {[%clk 0:00:19]} 34. Qg4 {[%clk 0:00:08]}  Bxf2 {[%clk 0:00:16]} 35. Rxh5+ {[%clk 0:00:08]}  Kg8 {[%clk 0:00:12]} 36. Rh8+ {[%clk 0:00:07]}  Kg7 {[%clk 0:00:07]} 37. Rh7+ {[%clk 0:00:07]}  Kg8 {[%clk 0:00:07]} 38. Qh3 {[%clk 0:00:08]}  Rxg5 {[%clk 0:00:04]} 39. Rxg5 {[%clk 0:00:07]}  Qxg5 {[%clk 0:00:04]} 40. Rh8+ {[%clk 0:00:07]}  Kf7 {[%clk 0:00:04]} 41. Qh7+ {[%clk 0:00:07]}  Ke8 {[%clk 0:00:03]} 42. Rxf8+ {[%clk 0:00:08]}  Kxf8 {[%clk 0:00:04]} 43. Qh8+ {[%clk 0:00:06]}  Kf7 {[%clk 0:00:03]} 44. Qh7+ {[%clk 0:00:06]}  Ke6 {[%clk 0:00:03]} 45. Nc7+ {[%clk 0:00:04]}  Kd6 {[%clk 0:00:02]} 46. Ne8+ {[%clk 0:00:00]}  Bxe8 {[%clk 0:00:03]} 0-1


[Site "https://www.chess.com"]

[Event "Titled Tuesday Blitz October 31 Late 2023"]
[White "Mekhitarian, Krikor Sevag"]
[Black "Buchenau, Frank"]
[WhiteFideId "2107660"]
[BlackFideId "4604350"]
[WhiteElo "2742"]
[BlackElo "2488"]
[Result "1-0"]
[Round "7"]
[TimeControl "180+1"]
[Date "2023.10.31"]
[WhiteClock "0:01:20"]
[BlackClock "0:00:00"]
[Board "58"]

1. Nf3 {[%clk 0:03:00]}  Nf6 {[%clk 0:02:59]} 2. c4 {[%clk 0:02:58]}  e6 {[%clk 0:02:59]} 3. Nc3 {[%clk 0:02:56]}  b6 {[%clk 0:02:59]} 4. e4 {[%clk 0:02:55]}  Bb7 {[%clk 0:02:49]} 5. Bd3 {[%clk 0:02:54]}  d6 {[%clk 0:02:44]} 6. Bc2 {[%clk 0:02:54]}  c5 {[%clk 0:02:42]} 7. d4 {[%clk 0:02:54]}  cxd4 {[%clk 0:02:41]} 8. Nxd4 {[%clk 0:02:55]}  Be7 {[%clk 0:02:37]} 9. O-O {[%clk 0:02:54]}  O-O {[%clk 0:02:37]} 10. f3 {[%clk 0:02:55]}  Nbd7 {[%clk 0:02:34]} 11. Re1 {[%clk 0:02:55]}  Qc7 {[%clk 0:02:31]} 12. Ndb5 {[%clk 0:02:53]}  Qb8 {[%clk 0:02:28]} 13. b3 {[%clk 0:02:52]}  a6 {[%clk 0:02:27]} 14. Nd4 {[%clk 0:02:53]}  Re8 {[%clk 0:02:22]} 15. Be3 {[%clk 0:02:52]}  Qc7 {[%clk 0:02:21]} 16. Qd2 {[%clk 0:02:53]}  Rac8 {[%clk 0:02:20]} 17. Nce2 {[%clk 0:02:50]}  Qb8 {[%clk 0:02:16]} 18. Rad1 {[%clk 0:02:50]}  b5 {[%clk 0:02:13]} 19. cxb5 {[%clk 0:02:50]}  axb5 {[%clk 0:02:13]} 20. Bd3 {[%clk 0:02:42]}  Ba6 {[%clk 0:01:56]} 21. Rc1 {[%clk 0:02:40]}  Nc5 {[%clk 0:01:49]} 22. Bb1 {[%clk 0:02:40]}  b4 {[%clk 0:01:32]} 23. Ng3 {[%clk 0:02:37]}  g6 {[%clk 0:01:20]} 24. Bg5 {[%clk 0:02:35]}  e5 {[%clk 0:01:04]} 25. Ndf5 {[%clk 0:02:31]}  gxf5 {[%clk 0:00:54]} 26. Nxf5 {[%clk 0:02:32]}  Bd8 {[%clk 0:00:31]} 27. Bh4 {[%clk 0:02:30]}  Ne6 {[%clk 0:00:23]} 28. Kh1 {[%clk 0:02:26]}  Kh8 {[%clk 0:00:20]} 29. Rxc8 {[%clk 0:02:24]}  Bxc8 {[%clk 0:00:18]} 30. Nxd6 {[%clk 0:02:22]}  Rg8 {[%clk 0:00:16]} 31. Nxf7+ {[%clk 0:02:21]}  Kg7 {[%clk 0:00:16]} 32. Nxd8 {[%clk 0:02:22]}  Rxd8 {[%clk 0:00:15]} 33. Qf2 {[%clk 0:02:00]}  Qd6 {[%clk 0:00:15]} 34. Rg1 {[%clk 0:01:44]}  Qd2 {[%clk 0:00:14]} 35. Qg3+ {[%clk 0:01:44]}  Kf7 {[%clk 0:00:14]} 36. Qxe5 {[%clk 0:01:43]}  Nd7 {[%clk 0:00:10]} 37. Qf5+ {[%clk 0:01:42]}  Kg7 {[%clk 0:00:08]} 38. Qxe6 {[%clk 0:01:40]}  Rf8 {[%clk 0:00:07]} 39. e5 {[%clk 0:01:36]}  Qf4 {[%clk 0:00:06]} 40. Bg3 {[%clk 0:01:21]}  Qf7 {[%clk 0:00:04]} 41. Qg4+ {[%clk 0:01:19]}  Kh8 {[%clk 0:00:00]} 42. e6 {[%clk 0:01:20]} 1-0


[Site "https://www.chess.com"]

[Event "Titled Tuesday Blitz October 31 Late 2023"]
[White "Willy, Stephen"]
[Black "Gubajdullin, Alexei"]
[WhiteFideId "30981468"]
[BlackFideId "4141202"]
[WhiteElo "2483"]
[BlackElo "2693"]
[Result "0-1"]
[Round "7"]
[TimeControl "180+1"]
[Date "2023.10.31"]
[WhiteClock "0:00:41"]
[BlackClock "0:01:58"]
[Board "60"]

1. e4 {[%clk 0:03:00]}  g6 {[%clk 0:02:59]} 2. d4 {[%clk 0:03:01]}  Bg7 {[%clk 0:02:59]} 3. Nc3 {[%clk 0:03:01]}  d6 {[%clk 0:02:59]} 4. f4 {[%clk 0:03:01]}  a6 {[%clk 0:02:59]} 5. Nf3 {[%clk 0:03:00]}  b5 {[%clk 0:03:00]} 6. Be3 {[%clk 0:03:00]}  Nd7 {[%clk 0:03:00]} 7. Bd3 {[%clk 0:02:51]}  c5 {[%clk 0:02:53]} 8. dxc5 {[%clk 0:02:37]}  Nxc5 {[%clk 0:02:52]} 9. O-O {[%clk 0:02:35]}  Nf6 {[%clk 0:02:44]} 10. e5 {[%clk 0:02:21]}  Ng4 {[%clk 0:02:39]} 11. Bxc5 {[%clk 0:02:20]}  dxc5 {[%clk 0:02:38]} 12. Be4 {[%clk 0:02:20]}  Ra7 {[%clk 0:02:37]} 13. Ng5 {[%clk 0:01:53]}  Qxd1 {[%clk 0:02:31]} 14. Raxd1 {[%clk 0:01:47]}  O-O {[%clk 0:02:30]} 15. Rd3 {[%clk 0:01:43]}  c4 {[%clk 0:02:28]} 16. Rg3 {[%clk 0:01:38]}  Nh6 {[%clk 0:02:23]} 17. Nd5 {[%clk 0:01:29]}  Nf5 {[%clk 0:02:21]} 18. Bxf5 {[%clk 0:01:27]}  Bxf5 {[%clk 0:02:21]} 19. Ne3 {[%clk 0:01:26]}  Bc8 {[%clk 0:02:18]} 20. h4 {[%clk 0:01:17]}  f6 {[%clk 0:02:18]} 21. Nf3 {[%clk 0:01:15]}  Bh6 {[%clk 0:02:09]} 22. Nh2 {[%clk 0:00:54]}  fxe5 {[%clk 0:02:00]} 23. fxe5 {[%clk 0:00:49]}  Rxf1+ {[%clk 0:01:59]} 24. Kxf1 {[%clk 0:00:41]}  Bf4 {[%clk 0:01:58]} 0-1


[Site "https://www.chess.com"]